Cogmind - Beta 13 @@@ ROGUE MODE // 2024.04.04 @ 20:04:32 Player: engineer Result: Destroyed by H-61 Shepherd with Heavy Assault Cannon Performance ------------- Evolutions (3) 1500 Regions Visited (4) 800 Robots Destroyed (49) 245 Value Destroyed (1326) 1326 Prototype IDs (0) 0 Alien Tech Used (0) 0 Bonus (-61) -61 TOTAL SCORE: 3810 Bonus ------- Friendly Fire -61 Cogmind --------- Core Integrity 0/700 Matter 300/300 Energy 100/100 System Corruption 4% Temperature Cool (0) Movement Core (350) Ox6 Location -7/Factory Parts ------- > --- POWER (2) -------- (None) > --- PROPULSION (3) --- (None) > --- UTILITY (6) ------ Large Storage Unit Improved Signal Interpreter Advanced Targeting Computer > --- WEAPON (2) ------- (None) > --- INVENTORY (15) --- Faulty Enhanced Nuclear Core Gravmag System Transport Network Coupler Heavy Armor Plating Heavy Particle Gun Light Assault Rifle Assault Cannon Assault Cannon Grenade Launcher Grenade Launcher Remote Datajack Mining Claw Peak State ------------ > --- POWER ------------ Improved Ion Engine Light Nuclear Core > --- PROPULSION ------- Light Treads Light Treads Light Treads > --- UTILITY ---------- Improved Heat Sink Large Storage Unit Sensor Array Improved Signal Interpreter Transmission Jammer System Shield > --- WEAPON ----------- Beam Rifle Subdweller Beam Cannon > --- INVENTORY -------- Enhanced Nuclear Core Carbon-fiber Leg Transport Network Coupler Advanced Targeting Computer Heavy Armor Plating Heavy Particle Gun Light Assault Rifle Assault Cannon Assault Cannon Grenade Launcher Grenade Launcher Mining Claw [Rating: 30] Favorites ----------- Power Improved Ion Engine Engine Improved Ion Engine Power Core Light Nuclear Core Propulsion Light Treads Treads Light Treads Leg Carbon-fiber Leg Utility Large Storage Unit Device Sensor Array Storage Large Storage Unit Processor Signal Interpreter Hackware System Shield Weapon Beam Rifle Energy Gun Beam Rifle Energy Cannon Subdweller Beam Cannon Ballistic Gun Light Assault Rifle Launcher Grenade Launcher Slashing Weapon Mining Claw Build | -11 -10 -10 -8 -7 ------- Run | Yrd Mat Sub Mat Fac Slots Evolved 6 | . . . 4 2 Power 1 | . . . 1 . Propulsion 1 | . . . 1 . Utility 4 | . . . 2 2 Weapon . | . . . . . Parts Attached 48 | 7 12 2 19 8 Power 7 | 1 1 . 5 . Engine 4 | 1 1 . 2 . Core 3 | . . . 3 . Reactor . | . . . . . Propulsion 9 | 2 3 . 2 2 Treads 8 | 2 3 . 2 1 Leg 1 | . . . . 1 Wheel . | . . . . . Hover . | . . . . . Flight . | . . . . . Utility 11 | 1 3 . 3 4 Device 5 | . 1 . 3 1 Storage 2 | 1 1 . . . Processor 3 | . 1 . . 2 Hackware 1 | . . . . 1 Protection . | . . . . . Artifact . | . . . . . Weapon 21 | 3 5 2 9 2 Energy Gun 11 | 2 3 . 5 1 Energy Cannon 2 | . . . 1 1 Ballistic Gun 2 | 1 1 . . . Ballistic Cannon . | . . . . . Launcher 4 | . . 2 2 . Special Weapon . | . . . . . Impact Weapon . | . . . . . Slashing Weapon 2 | . 1 . 1 . Piercing Weapon . | . . . . . Special Melee Weapon . | . . . . . Unidentified Prototypes . | . . . . . Parts Lost 18 | . 1 . 3 14 Power 4 | . . . 2 2 Propulsion 5 | . . . . 5 Utility 5 | . . . 1 4 Weapon 4 | . 1 . . 3 Highest Loss Streak 8 | . 1 . 2 8 To Critical Strikes . | . . . . . Average Slot Usage (%) 95 | . 96 100 94 93 Engine 10 | . 14 14 9 6 Core 4 | . . . 7 6 Treads 24 | . 28 28 26 18 Device 13 | . 11 . 13 21 Storage 10 | . 14 14 9 7 Processor 5 | . . 14 9 7 Hackware 1 | . . . . 7 Energy Gun 16 | . 23 9 14 9 Energy Cannon 1 | . . . . 3 Launcher 1 | . . 18 2 . Slashing Weapon 1 | . 2 . 1 . Naked Turns . | . . . . . Heaviest Build 46 | 11 34 33 44 46 Greatest Support 60 | 40 40 40 60 60 Greatest Overweight (x) 8 | . . . . 8 Average Overweight (x) . | . . . . . Largest Inventory Capacity 15 | 8 15 15 15 15 Average Capacity 14 | 7 13 15 15 15 Most Carried 15 | 1 11 13 15 15 Average Carried 10 | . 7 11 13 13 Final Capacity 15 | 8 15 15 15 15 Final Carried 15 | 1 11 13 15 13 Class Distribution -------------------- 71% | Mutant 28% | Scavenger-Mutant Dominant Class ---------------- Mutant | -10/Materials Mutant | -10/Subcaves Mutant | -8/Materials Scavenger-Mutant | -7/Factory Resources | -11 -10 -10 -8 -7 ----------- Run | Yrd Mat Sub Mat Fac Matter Collected 897 | 228 202 68 329 70 Remotely . | . . . . . Salvage Created 1672 | . 353 62 1049 208 Parts 107 | . 26 7 66 8 Haulers Intercepted 4 | . 1 . 3 . Recyclers Shooed . | . . . . . Parts Field Recycled . | . . . . . Retrieved Matter . | . . . . . Parts Self-Destructed 11 | . . 11 . . Prevented . | . . . . . Kills | -11 -10 -10 -8 -7 ------- Run | Yrd Mat Sub Mat Fac Combat Hostiles Destroyed 34 | . 9 2 19 4 Guns 25 | . 9 . 14 2 Cannons 2 | . . . 1 1 AOE 6 | . . 2 4 . Classes Destroyed 13 | . 4 1 7 1 Worker 1 | . . . 1 . Builder 2 | . . . 2 . Tunneler 1 | . . . 1 . Hauler 4 | . 1 . 3 . Recycler 2 | . . . 2 . Operator 1 | . . . 1 . Watcher 4 | . 3 . 1 . Swarmer 12 | . 6 . 6 . Grunt 13 | . 3 . 9 1 Sentry 4 | . . . 3 1 Hunter 1 | . . . 1 . Programmer 2 | . . . . 2 Subdweller 2 | . . 2 . . Best Kill Streak 6 | . 5 1 6 1 Combat Bots Only 5 | . 5 1 3 1 Max Kills in Single Turn 2 | . 2 1 2 1 Gunslinging 1 | . 1 . 1 . Exploded 1 | . . 1 1 . Melee . | . . . . . Uniques/NPCs Destroyed . | . . . . . Combat | -11 -10 -10 -8 -7 -------- Run | Yrd Mat Sub Mat Fac Hostile Shots Fired 304 | . 52 6 77 169 Missed 88 | . 13 . 18 57 Damage Taken 3157 | . 411 117 999 1630 Core 1005 | . 86 20 196 703 Absorbed by Shields . | . . . . . Regen/Repaired (Parts) 124 | . . . 108 16 Core Remaining (%) 73 | 100 . 57 64 . Volleys Fired 152 | . 39 3 84 26 Largest 2 | . 2 2 2 2 Hottest 136 | . 112 60 136 136 Shots Fired 287 | . 66 6 165 50 Gun 256 | . 66 . 145 45 Cannon 13 | . . . 8 5 Launcher 18 | . . 6 12 . Special . | . . . . . Kinetic 4 | . 4 . . . Thermal 190 | . 62 . 97 31 Explosive 18 | . . 6 12 . Electromagnetic 75 | . . . 56 19 Robot Hit Streak 11 | . 10 1 10 11 Robot Miss Streak 6 | . 6 1 4 2 Penetration Max . | . . . . . Secondary Targets 2 | . 1 . 1 . Max Gunslinging Chain 1 | . 1 . 1 . Shots Hit Robots 162 | . 31 1 90 40 Core Hits 87 | . 18 4 55 10 Critical Kills . | . . . . . Critical Parts Destroyed . | . . . . . Critical Strikes 11 | . 3 . 6 2 Burn 11 | . 3 . 6 2 Melee Attacks 32 | . 17 . 15 . Impact . | . . . . . Slashing 32 | . 17 . 15 . Piercing . | . . . . . Sneak Attacks . | . . . . . Combat Hostiles . | . . . . . Follow-up Attacks . | . . . . . Damage Inflicted 3626 | . 407 230 2373 616 Guns 2398 | . 407 . 1458 533 Cannons 278 | . . . 195 83 Explosions 950 | . . 230 720 . Melee . | . . . . . Ramming . | . . . . . Kinetic 14 | . 14 . . . Thermal 2049 | . 393 . 1210 446 Explosive 750 | . . 230 520 . Electromagnetic 813 | . . . 643 170 Impact . | . . . . . Slashing . | . . . . . Piercing . | . . . . . Highest Corruption 5 | . . . 5 4 Average Corruption 3 | . . . 5 1 Corruption Purged . | . . . . . Corruption Blocked . | . . . . . Effects 18 | . . . 17 1 Message Errors 6 | . . . 5 1 Matter Fused 1 | . . . 1 . Heat Flow Errors 3 | . . . 3 . Energy Discharges 4 | . . . 4 . Data Loss (minor) 2 | . . . 2 . Data Loss (major) 1 | . . . 1 . Weapon Failures 1 | . . . 1 . Overload Shots . | . . . . . Overflow Damage 3 | . . . 3 . Projectiles . | . . . . . Explosions 3 | . . . 3 . Melee . | . . . . . Knockbacks . | . . . . . Impact . | . . . . . Kinetic . | . . . . . Secondary . | . . . . . Self-Inflicted Damage 69 | . . 17 52 . Shots 3 | . . 1 2 . Rammed . | . . . . . Targets Rammed . | . . . . . Kicked . | . . . . . Crushed . | . . . . . Highest Temperature 415 | . 415 . 385 196 Average Temperature 103 | . 126 . 102 59 Received Heat Transfer 549 | . 165 27 270 87 Effects 10 | . 4 . 6 . Shutdowns 4 | . 1 . 3 . Energy Bleed 1 | . 1 . . . Interference 3 | . . . 3 . Matter Decay 1 | . 1 . . . Short Circuit 1 | . 1 . . . Siege Activations . | . . . . . Robots Corrupted . | . . . . . Combat Hostiles . | . . . . . Parts Fried 2 | . . . 1 1 Impact Corruptions . | . . . . . Robots Melted 1 | . . . . 1 Combat Hostiles 1 | . . . . 1 Parts Melted 13 | . 5 . 3 5 Heat Transferred 5423 | . 1238 . 3075 1110 Parts Sabotaged . | . . . . . Parts Stolen . | . . . . . Parts Stripped . | . . . . . Power Chain Reactions 3 | . . . 3 . Alert | -11 -10 -10 -8 -7 ------- Run | Yrd Mat Sub Mat Fac Peak Influence 391 | . 153 . 391 210 Initial 169 | . . . . 169 Average 87 | . 39 . 181 62 Maximum Alert Level 1 | . . . 1 1 Low Security (%) 85 | 100 100 . 64 87 Level 1 14 | . . . 35 12 Level 2 . | . . . . . Level 3 . | . . . . . Level 4 . | . . . . . Level 5 . | . . . . . High Security . | . . . . . Max Security . | . . . . . Squads Dispatched 8 | . 1 . 2 5 Investigation 1 | . . . 1 . Extermination 2 | . . . . 2 Reinforcement 4 | . 1 . 1 2 Assault 1 | . . . . 1 Garrison . | . . . . . Intercept . | . . . . . Searches Triggered . | . . . . . Construction Impeded . | . . . . . Haulers Reinforced 1 | . . . . 1 Active Scanning Responses . | . . . . . Cargo Convoy Interrupts 1 | . . . . 1 Stealth | -11 -10 -10 -8 -7 --------- Run | Yrd Mat Sub Mat Fac Distress Signals 5 | . . . 5 . Communications Jammed 12 | . . . . 12 Distress Signals 11 | . . . . 11 Times Spotted 71 | . 18 4 40 9 Peak Tracking Total 5 | . 5 2 4 5 Tactical Retreats 2 | . . . 2 . Traps | -11 -10 -10 -8 -7 ------- Run | Yrd Mat Sub Mat Fac Traps Triggered 2 | . 1 . 1 . Indirectly . | . . . . . Trap Hack Attempts . | . . . . . Triggered . | . . . . . Disarmed 2 | . 2 . . . Reprogrammed . | . . . . . Reused . | . . . . . Traps Extracted . | . . . . . Installed . | . . . . . Triggered 2 | . . . . 2 Machines | -11 -10 -10 -8 -7 ---------- Run | Yrd Mat Sub Mat Fac Machines Disabled 5 | . . . 5 . Max in Single Turn 2 | . . . 2 . Garrison Access 2 | . . . 1 1 Machines Repaired . | . . . . . Machines Dismantled . | . . . . . Machines Sabotaged . | . . . . . Overloaded Fab Kills . | . . . . . Hacking | -11 -10 -10 -8 -7 --------- Run | Yrd Mat Sub Mat Fac Machines Accessed 15 | . 5 . 6 4 Terminals 10 | . 5 . 3 2 Fabricators . | . . . . . Repair Stations 2 | . . . 1 1 Recycling Units 1 | . . . 1 . Scanalyzers . | . . . . . Garrison Access 2 | . . . 1 1 Total Hacks 42 | . 22 . 13 7 Successful 27 | . 13 . 8 6 Failed 15 | . 9 . 5 1 Catastrophic 3 | . 1 . 1 1 Database Lockouts . | . . . . . Manual 19 | . 10 . 8 1 Terminals 31 | . 22 . 7 2 Fabricators . | . . . . . Repair Stations 4 | . . . 2 2 Recycling Units 1 | . . . 1 . Scanalyzers . | . . . . . Garrison Access 6 | . . . 3 3 Terminal Hacks 16 | . 10 . 4 2 Record 1 | . . . . 1 Open DSF 1 | . . . . 1 Terminal Index 1 | . 1 . . . Alert Level 2 | . 1 . 1 . Unreport Threat 2 | . 1 . 1 . Locate Traps 4 | . 3 . 1 . Disarm Traps 2 | . 2 . . . Dispatch Records 1 | . . . 1 . Hauler Manifests 2 | . 2 . . . Fabricator Hacks . | . . . . . Repair Station Hacks 4 | . . . 2 2 Scan Component 2 | . . . 1 1 Repair 2 | . . . 1 1 Recycling Unit Hacks 1 | . . . 1 . Report Inventory 1 | . . . 1 . Scanalyzer . | . . . . . Garrison Access Hacks 2 | . . . 1 1 Unlock Access 1 | . . . . 1 Seal Access 1 | . . . 1 . Unauthorized Hacks 4 | . 3 . . 1 Terminals 3 | . 3 . . . Assimilate 2 | . 2 . . . Operators 1 | . 1 . . . Fabricators . | . . . . . Repair Stations . | . . . . . Recycling Units . | . . . . . Scanalyzers . | . . . . . Garrison Access 1 | . . . . 1 Watchers 1 | . . . . 1 Data Cores Recovered . | . . . . . Used . | . . . . . Hacking Detections 13 | . 4 . 6 3 Full Trace Events 1 | . 1 . . . Feedback Events . | . . . . . Feedback Blocked . | . . . . . Robot Schematics Acquired . | . . . . . Robots Built . | . . . . . Authchips . | . . . . . Time . | . . . . . Total Robot Build Rating . | . . . . . Part Schematics Acquired . | . . . . . Parts Built . | . . . . . Authchips . | . . . . . Time . | . . . . . Total Part Build Rating . | . . . . . Parts Repaired 2 | . . . 1 1 Time 79 | . . . 26 53 Parts Recycled . | . . . . . Recycled Matter . | . . . . . Retrieved Matter . | . . . . . Retrieved Components . | . . . . . Parts Scanalyzed . | . . . . . Part Schematics Acquired . | . . . . . Parts Damaged . | . . . . . Bothacking | -11 -10 -10 -8 -7 ------------ Run | Yrd Mat Sub Mat Fac Used RIF Installer . | . . . . . Robots Hacked . | . . . . . Non-combat . | . . . . . Combat . | . . . . . Robot Hacks Applied . | . . . . . Relay Couplers Released 3 | . . . . 3 Machine Destruction 3 | . . . . 3 Fabnet Peak Effective % . | . . . . . Robots Rewired . | . . . . . Allies Hacked . | . . . . . Hacks Repelled . | . . . . . Allies | -11 -10 -10 -8 -7 -------- Run | Yrd Mat Sub Mat Fac Total Allies 1 | . 1 . . . Largest Group 1 | . 1 1 1 . Highest-Rated Group 10 | . 10 10 9 . Highest-Rated Ally 10 | . 10 10 9 . Total Orders . | . . . . . Ally Attacks . | . . . . . Total Damage . | . . . . . Kills . | . . . . . Allies Corrupted . | . . . . . Allies Melted . | . . . . . Intel | -11 -10 -10 -8 -7 ------- Run | Yrd Mat Sub Mat Fac Robot Analysis Total . | . . . . . Derelict Logs Recovered . | . . . . . Drone Launches . | . . . . . Drone Recoveries . | . . . . . Exploration | -11 -10 -10 -8 -7 ------------- Run | Yrd Mat Sub Mat Fac Turns Passed 5797 | 75 2130 436 1565 1591 Spaces Moved 2377 | 42 888 264 579 604 Core 9 | 3 . . . 6 Treads 2368 | 39 888 264 579 598 Legs . | . . . . . Wheels . | . . . . . Hover . | . . . . . Flight . | . . . . . Fastest Speed 50 | 50 160 160 160 160 Average Speed 167 | 152 160 160 160 189 Slowest Speed 450 | 160 160 160 160 450 Overloaded Moves . | . . . . . Propulsion Burnouts . | . . . . . Robots Hopped . | . . . . . Cave-ins Triggered 1 | . . . 1 . Exploration Rate (%) 30 | 4 92 15 33 9 Regions Visited 4 Branch Regions 1 Pre-discovered Areas . | . . . . . Known Exits Taken 3 | . 1 1 1 . Unknown Exits Taken 1 | 1 . . . . Scrap Searched . | . . . . . Spaces Dug 21 | . 7 . 14 . Terrain Destroyed 99 | . 7 31 59 2 Melee 21 | . 7 . 14 . Projectile 2 | . . . . 2 AOE 76 | . . 31 45 . Terrain Rammed . | . . . . . Walls Destroyed . | . . . . . Machines Disabled . | . . . . . Actions | -11 -10 -10 -8 -7 --------- Run | Yrd Mat Sub Mat Fac Total 3837 | 50 1496 271 1017 1003 Wait 1185 | . 520 1 306 358 Move 2372 | 41 887 263 577 604 Hop . | . . . . . Pick Up 32 | 1 15 2 9 5 Fast Attach 16 | 7 1 . 5 3 Attach 10 | . 2 . 4 4 Detach . | . . . . . Swap 22 | . 9 2 10 1 Drop 15 | 1 6 . 6 2 Fire 152 | . 39 3 84 26 Melee 32 | . 17 . 15 . Ram . | . . . . . Kick . | . . . . . Crush . | . . . . . Escape Stasis 1 | . . . 1 . Rewire . | . . . . . Trap . | . . . . . Miscellaneous . | . . . . . Route ------- -11/Scrapyard -10/Materials (discovered 6 exits: [*Mat x3] / [*Min x2] / *Sub) -10/Subcaves -8/Materials -7/Factory History --------- Turn | Location | Event 2 | -11/Scrapyard | Met Revision 17 50 | -11/Scrapyard | Discovered new exit (range 16) 76 | -11/Scrapyard | Entered Materials 305 | -10/Materials | Build established: Mutant 360 | -10/Materials | Discovered new exit (range 12) 545 | -10/Materials | Discovered new exit (range 15) 1114 | -10/Materials | Discovered new exit (range 9) 1257 | -10/Materials | Discovered new exit (range 12) 1986 | -10/Materials | Discovered new exit (range 3) 2063 | -10/Materials | Discovered new exit (range 9) 2191 | -10/Materials | Identified exit to Subcaves 2206 | -10/Materials | Entered Subcaves 2206 | -10/Subcaves | Accompanied by 1 ally 2209 | -10/Subcaves | A swath of the cavern ceiling suddenly collapsed 2600 | -10/Subcaves | Discovered new exit (range 13) 2615 | -10/Subcaves | Shifting Twisted Machinery released Shrapnel Trap 2615 | -10/Subcaves | Shifting Twisted Machinery released Sub. Beam Cannon 2617 | -10/Subcaves | Identified exit to Materials 2642 | -10/Subcaves | Entered Materials 2642 | -8/Materials | Accompanied by 1 ally 2642 | -8/Materials | Evolved 4 slots: Power x1, Propulsion x1, Utility x2 3331 | -8/Materials | Repaired Lgt. Treads 3561 | -8/Materials | Build established: Scavenger-Mutant 3619 | -8/Materials | Crushed by falling debris 3704 | -8/Materials | Discovered new exit (range 3) 3919 | -8/Materials | Build established: Mutant 4205 | -8/Materials | Identified exit to Factory 4207 | -8/Materials | Entered Factory 4207 | -7/Factory | Evolved 2 slots: Utility x2 4332 | -7/Factory | Identified exit to DSF 4432 | -7/Factory | Identified exit to Garrison 4616 | -7/Factory | Repaired Corrupted Imp. Signal Interpreter 4733 | -7/Factory | Build established: Scavenger-Mutant 5508 | -7/Factory | Cargo convoy interrupted 5604 | -7/Factory | Lost 3 parts (1n1u1w) 5789 | -7/Factory | Core integrity fell below 50% 5795 | -7/Factory | Core integrity fell below 20% 5798 | -7/Factory | Destroyed by H-61 Shepherd with Heavy Assault Cannon Last Messages --------------- 05773_ Beam Rifle destroyed. 05773_ Penetrated by Slug. 05773_ I-36 Angel distress signal jammed. 05776_ Penetrated by Slug. 05776_ Carbon-fiber Leg destroyed. 05777_ Slug penetrates Wall. 05784_ ALERT: Garrison Access compromised, dispatching assault squad. 05784_ Garrison Access disabled. 05784_ Relay Coupler [Brawler] tumbles out of Garrison Access. 05784_ Relay Coupler [NC] tumbles out of Garrison Access. 05784_ Relay Coupler [Brawler] tumbles out of Garrison Access. 05785_ Transmission Jammer destroyed. 05788_ Knocked back. 05789_ Slug penetrates Wall. 05790_ Sensor Array destroyed. 05792_ Knocked back. 05792_ Slug penetrates Wall. 05796_ System Shield destroyed. 05796_ Critical hit (Blast). 05798_ Slug penetrates Wall. Map ----- +----------------------------------------------------+ | ?????????????????????????????????????????????????? | | ?????????????????????????????????????????????????? | | ??????????###????????????????????????????????????? | | ###??????? ?????????????????????????????????????? | | #?????# #???###???????????????????????????????? | | ?# ####### #??? ???????????????????????????????? | | ?# #??? ???????????????????????????#### | | ?# #??? """??????????????????????????# | | ?# """#??# ????????????????????????# | | ## R"#??# """"""???????????????????????# | | # """#??# ??????????????????????# | | # #??# """""""??????????????????????# | | # """ ####! ???????????????????????# | | # """"" # """""""??????????????????????# | | # """"" # ??????????????????????# | | + # """""""""????????????????????# | | # ! + ####???????????????# | | # ############### ##??????????????# | | ##### #??????# !! #??????????????# | | #???# #??????# !] #???????????####### | | #???# #??????# ] #???????????# | | #???# #??????# #???????????# | | ######+## #??????# ! """ #???????????# "" | | ! + #??????# HG" #???????????# "" | | ! """ # #??????# % %! "" #???????????# "T | | ! """ # #??????#! %@%! #??????####?# "" | | """ # ############p############T ### "" | | # %% | | ######### | | ######### | | # ! | | """""" # | | # """ """ #####+####################+## | | """""" # """ """ ## #?????????# | | # """ """ ## """ #?????????# """ " | | """""" + ## """ #?????????# """ " | | # """ """ ## """ #?????????# """ " | | """""" # """ """ ## #?????????# | | # """ """ ## """ #?????????# """ " | | """""" # ## """ #?????????# """ " | | # """ """ ## """ #?????????# """ " | | * # """ """ ## #?????????# | | ##+###+## """ """ ###########?????????# | | # # #??????????# | | # """ """ + """ #??????????# ! | | # """ """ #% """ #??????????######### | | ! + """ """ # """ #??????????????????? | | %# # #??????????????????? | | # """ """ # #??????????????????? | | ###### """ """ # "" "" #??????????????????? | +----------------------------------------------------+ Best States ------------- Heat Dissipation 48 Energy Generation 22 Energy Capacity 430 Matter Stores 300 Matter Capacity 300 Sight Range 16 Robot Scan Range 14 Terrain Scan Density 10 Jamming Range 12 Evasion (%) 40 Targeting Accuracy 8 Recoil Reduction 3 Defensive Hacking 10 Item Schematics ----------------- None Robot Schematics ------------------ None Fabricated ------------ Nothing Alien Tech Used ----------------- None Achievements -------------- None Challenges ------------ None Game ------ Seed ThiefShadeProtomatter Manual? 0 Play Time 00:53:14 Cumulative 9.8 hours Start 2024.04.04 @ 18:05:18 End 2024.04.04 @ 20:04:32 Sessions 1 Manual Loads 0 Difficulty Rogue Special Mode None Game No. 24 Rogue 24 Adventurer 0 Explorer 0 Win Type - Total 0 Types 0/0/0/0/0/0/0/0/0 Lore% 7 Gallery% 12 Achievement% 14 Wizard Run 0 Options --------- Layout 0 ASCII 0 Keyboard 0 Movement Mouse Keybinds 0 Fullscreen 2 Font 24/Smallcaps Map View 76x50 Zoom Use 0% Tactical HUD 1 Map Filters NONE Filters NONE Steam 1 RUN: 75a1ba81-b1f8-4282-8b01-4d5b3ca507c1